fUST/lending_fUST_20250812
["ID","MTS","AMOUNT","RATE_DAILY","PERIOD"]
[378695183,1754959846912,-935.87,0.00019346,2]
[378695185,1754959846922,-460.0,0.00019346,2]
[378695187,1754959846932,-460.0,0.00019346,2]
[378695189,1754959846942,-460.0,0.00019346,2]
[378695191,1754959846952,-460.0,0.00019346,2]
[378695193,1754959846962,-460.0,0.00019346,2]
[378695196,1754959846972,-460.0,0.00019346,2]
[378695198,1754959846982,-466.29801671,0.00019346,2]
[378695200,1754959846992,-460.0,0.00019346,2]
[378695202,1754959847003,-650.85,0.00019346,2]
[378695204,1754959847012,-460.0,0.00019346,2]
[378695206,1754959847022,-460.0,0.00019346,2]
[378695208,1754959847032,-463.90749925,0.00019346,2]
[378695210,1754959847042,-460.0,0.00019346,2]
[378695212,1754959847052,-460.0,0.00019346,2]
[378695214,1754959847062,-1063.4,0.00019346,2]
[378695216,1754959847071,-661.87,0.00019346,2]
[378695219,1754959847081,-460.0,0.00019346,2]
[378695221,1754959847091,-460.0,0.00019346,2]
[378695223,1754959847102,-774.72,0.00019346,2]
[378695225,1754959847112,-462.2,0.00019346,2]
[378695227,1754959847122,-225.24655388,0.00019346,2]
[378695229,1754959847132,-460.0,0.00019346,2]
[378695231,1754959847142,-460.0,0.00019346,2]
[378695233,1754959847152,-460.0,0.00019346,2]
[378695235,1754959847161,-460.0,0.00019346,2]
[378695237,1754959847171,-1830.6,0.00019346,2]
[378695238,1754959847181,-460.0,0.00019346,2]
[378695239,1754959847190,-460.0,0.00019346,2]
[378695240,1754959847201,-460.0,0.00019346,2]
[378695241,1754959847211,-473.2,0.00019346,2]
[378695242,1754959847221,-460.0,0.00019346,2]
[378695243,1754959847231,-460.0,0.00019346,2]
[378695244,1754959847243,-460.0,0.00019346,2]
[378695245,1754959847254,-626.37,0.00019346,2]
[378695246,1754959847263,-460.0,0.00019346,2]
[378695247,1754959847274,-555.8,0.00019346,2]
[378695248,1754959847286,-3083.72,0.00019346,2]
[378695249,1754959847296,-12797.6,0.00019346,2]
[378695250,1754959847307,-460.0,0.00019347,2]
[378695252,1754959847318,-460.0,0.00019347,2]
[378695254,1754959847328,-712.88,0.00019347,2]
[378695256,1754959847338,-461.7855396,0.00019347,2]
[378695258,1754959847347,-460.0,0.00019347,2]
[378695260,1754959847358,-460.0,0.00019347,2]
[378695262,1754959847368,-460.0,0.00019347,2]
[378695264,1754959847378,-460.0,0.00019347,2]
[378695265,1754959847387,-460.0,0.00019347,2]
[378695266,1754959847398,-485.01,0.00019347,2]
[378695267,1754959847407,-460.0,0.00019347,2]
[378695268,1754959847417,-460.0,0.00019347,2]
[378695269,1754959847428,-460.0,0.00019347,2]
[378695270,1754959847438,-521.49,0.00019347,2]
[378695271,1754959847449,-460.0,0.00019347,2]
[378695272,1754959847458,-460.0,0.00019347,2]
[378695273,1754959847468,-460.0,0.00019347,2]
[378695274,1754959847478,-460.0,0.00019347,2]
[378695275,1754959847488,-460.0,0.00019347,2]
[378695276,1754959847498,-460.0,0.00019347,2]
[378695277,1754959847508,-460.0,0.00019347,2]
[378695278,1754959847518,-460.0,0.00019347,2]
[378695279,1754959847528,-460.0,0.00019347,2]
[378695280,1754959847537,-460.0,0.00019347,2]
[378695281,1754959847547,-460.0,0.00019347,2]
[378695282,1754959847557,-460.0,0.00019347,2]
[378695283,1754959847567,-460.0,0.00019347,2]
[378695284,1754959847576,-460.0,0.00019347,2]
[378695285,1754959847586,-541.82486177,0.00019347,2]
[378695286,1754959847596,-151.0,0.00019347,2]
[378695287,1754959847606,-151.0,0.00019347,2]
[378695288,1754959847616,-151.0,0.00019347,2]
[378695289,1754959847626,-151.0,0.00019347,2]
[378695290,1754959847635,-151.0,0.00019347,2]
[378695291,1754959847645,-151.0,0.00019348,2]
[378695292,1754959847656,-261.250584,0.00019348,2]
[378695293,1754959847666,-151.0,0.00019348,2]
[378695294,1754959847676,-151.0,0.00019348,2]
[378695295,1754959847686,-460.0,0.00019348,2]
[378695296,1754959847696,-151.0,0.00019348,2]
[378695297,1754959847717,-151.0,0.00019348,2]
[378695298,1754959847728,-546.46,0.00019348,2]
[378695299,1754959847740,-2526.4,0.00019348,2]
[378695300,1754959847751,-238.068393,0.00019348,2]
[378695301,1754959847761,-151.0,0.00019348,2]
[378695302,1754959847772,-1956.06,0.00019348,2]
[378695303,1754959847783,-151.0,0.00019348,2]
[378695304,1754959847794,-1398.74,0.00019348,2]
[378695305,1754959847804,-151.0,0.00019348,2]
[378695306,1754959847815,-151.0,0.00019348,2]
[378695307,1754959847825,-1375.69732,0.00019348,2]
[378695308,1754959847836,-1375.69732,0.00019348,2]
[378695309,1754959847846,-151.0,0.00019348,2]
[378695310,1754959847857,-539.81,0.00019348,2]
[378695311,1754959847868,-460.0,0.00019348,2]
[378695312,1754959847879,-460.0,0.00019348,2]
[378695313,1754959847889,-250.123541,0.00019348,2]
[378695314,1754959847900,-3598.78,0.00019348,2]
[378695315,1754959847911,-250.123541,0.00019348,2]
[378695316,1754959847921,-151.0,0.00019348,2]
[378695317,1754959847931,-151.0,0.00019348,2]
[378695318,1754959847941,-151.0,0.00019348,2]
[378695319,1754959847951,-460.0,0.00019348,2]
[378695320,1754959847961,-3359.99,0.00019348,2]
[378695321,1754959847971,-442.07213191,0.00019373,2]
[378695322,1754959847981,-500.0,0.00019373,2]
[378695323,1754959847992,-500.0,0.00019373,2]
[378695324,1754959848002,-500.0,0.00019373,2]
[378695325,1754959848013,-500.0,0.00019373,2]
[378695326,1754959848024,-158.46538666,0.00019373,2]
[378695327,1754959848035,-158.46577498,0.00019373,2]
[378695328,1754959848046,-500.0,0.00019373,2]
[378695329,1754959848056,-500.0,0.00019373,2]
[378695330,1754959848066,-160.0,0.00019407,2]
[378695331,1754959848078,-160.0,0.00019408,2]
[378695332,1754959848088,-527.9539256,0.00019408,2]
[378695333,1754959848099,-160.0,0.00019408,2]
[378695334,1754959848110,-231.9940742,0.00019408,2]
[378695335,1754959848121,-843.18994796,0.00019408,2]
[378695336,1754959848131,-12671.21867243,0.00019408,2]
[378695337,1754959848143,-160.0,0.00019408,2]
[378695338,1754959848363,-461.69158338,0.00019408,2]
[378695339,1754959848373,-160.0,0.00019408,2]
[378695340,1754959848384,-160.0,0.00019408,2]
[378695341,1754959848402,-216.68257536,0.00019408,2]
[378695342,1754959848412,-160.0,0.00019408,2]
[378695343,1754959848421,-417.15472785,0.00019408,2]
[378695344,1754959848431,-215.4905783,0.00019408,2]
[378695345,1754959848441,-160.0,0.00019408,2]
[378695346,1754959848451,-299.6,0.0001941,2]
[378695347,1754959848461,-200.0,0.00019448,15]
[378695348,1754959848471,-200.0,0.00019448,15]
[378695349,1754959848481,-200.0,0.00019448,15]
[378695350,1754959848490,-200.0,0.00019448,15]
[378695351,1754959848499,-275.746889,0.00019451,2]
[378695352,1754959848509,-151.0,0.00019452,2]
[378695353,1754959848519,-151.0,0.00019452,2]
[378695354,1754959848533,-299.6,0.00019551,2]
[378695355,1754959848543,-460.0,0.00019616,2]
[378695356,1754959848552,-550.83,0.00019616,2]
[378695357,1754959848563,-680.72,0.00019616,2]
[378695358,1754959848573,-2336.91,0.00019616,2]
[378695359,1754959848582,-1398.25,0.00019616,2]
[378695360,1754959848601,-460.0,0.00019616,2]
[378695361,1754959848610,-460.0,0.00019616,2]
[378695362,1754959848620,-4331.58,0.00019616,2]
[378695363,1754959848629,-460.0,0.00019616,2]
[378695364,1754959848640,-577.7,0.00019616,2]
[378695365,1754959848650,-658.32,0.00019617,2]
[378695366,1754959848660,-460.0,0.00019617,2]
[378695367,1754959848670,-460.0,0.00019617,2]
[378695368,1754959848679,-460.0,0.00019617,2]
[378695369,1754959848690,-460.0,0.00019617,2]
[378695370,1754959848700,-5545.35,0.00019617,2]
[378695371,1754959848711,-460.0,0.00019617,2]
[378695372,1754959848722,-464.31,0.00019617,2]
[378695373,1754959848732,-460.0,0.00019617,2]
[378695374,1754959848742,-460.0,0.00019617,2]
[378695375,1754959848751,-873.58,0.00019617,2]
[378695376,1754959848761,-753.49,0.00019617,2]
[378695377,1754959848771,-460.0,0.00019617,2]
[378695378,1754959848782,-3647.97,0.00019617,2]
[378695379,1754959848791,-460.0,0.00019617,2]
[378695380,1754959848801,-460.0,0.00019617,2]
[378695381,1754959848811,-1305.54,0.00019617,2]
[378695382,1754959848821,-460.0,0.00019617,2]
[378695383,1754959848830,-460.0,0.00019617,2]
[378695384,1754959848840,-460.0,0.00019617,2]
[378695385,1754959848850,-460.0,0.00019617,2]
[378695386,1754959848860,-460.0,0.00019617,2]
[378695387,1754959848870,-1129.44,0.00019617,2]
[378695388,1754959848880,-964.47,0.00019617,2]
[378695389,1754959848890,-3115.19,0.00019617,2]
[378695390,1754959848900,-1380.3,0.00019617,2]
[378695391,1754959848911,-460.0,0.00019617,2]
[378695392,1754959848921,-460.0,0.00019617,2]
[378695393,1754959848931,-460.0,0.00019617,2]
[378695394,1754959848940,-607.49924354,0.00019617,2]
[378695395,1754959848951,-4267.02,0.00019617,2]
[378695396,1754959848961,-460.0,0.00019617,2]
[378695397,1754959848970,-467.18,0.00019617,2]
[378695398,1754959848979,-460.0,0.00019617,2]
[378695399,1754959848989,-460.0,0.00019617,2]
[378695400,1754959848998,-1548.4,0.00019617,2]
[378695401,1754959849008,-463.15336547,0.00019617,2]
[378695402,1754959849019,-1860.02,0.00019617,2]
[378695403,1754959849029,-460.0,0.00019617,2]
[378695404,1754959849039,-2163.34,0.00019617,2]
[378695405,1754959849049,-463.15122904,0.00019617,2]
[378695406,1754959849059,-460.0,0.00019617,2]
[378695407,1754959849068,-460.0,0.00019617,2]
[378695408,1754959849078,-460.0,0.00019617,2]
[378695409,1754959849088,-460.0,0.00019617,2]
[378695410,1754959849097,-460.0,0.00019617,2]
[378695411,1754959849107,-1112.78,0.00019617,2]
[378695412,1754959849117,-460.0,0.00019617,2]
[378695413,1754959849127,-1156.07,0.00019617,2]
[378695414,1754959849137,-460.0,0.00019617,2]
[378695415,1754959849146,-460.0,0.00019617,2]
[378695416,1754959849156,-500.0,0.00019618,2]
[378695417,1754959849166,-500.0,0.00019618,2]
[378695418,1754959849176,-500.0,0.00019618,2]
[378695419,1754959849185,-262.92559148,0.00019618,2]
[378695420,1754959849196,-423.6212444,0.00019618,2]
[378695421,1754959849206,-153.0496871,0.00019618,2]
[378695422,1754959849216,-500.0,0.00019618,2]
[378695423,1754959849226,-224.40282027,0.00019618,2]
[378695424,1754959849236,-208.0,0.00019618,2]
[378695425,1754959849250,-585.13973901,0.00019618,2]
[378695426,1754959849260,-151.0,0.00019618,2]
[378695427,1754959849270,-151.0,0.00019618,2]
[378695428,1754959849280,-199.64161567,0.00019618,2]
[378695429,1754959849292,-500.0,0.00019618,2]
[378695430,1754959849302,-500.0,0.00019618,2]
[378695431,1754959849312,-706.29,0.00019618,2]
[378695432,1754959849322,-460.0,0.00019618,2]
[378695433,1754959849332,-460.0,0.00019618,2]
[378695434,1754959849342,-1059.27,0.00019618,2]
[378695435,1754959849352,-753.71,0.00019618,2]
[378695436,1754959849361,-460.0,0.00019618,2]
[378695437,1754959849373,-460.0,0.00019618,2]
[378695438,1754959849383,-460.0,0.00019618,2]
[378695439,1754959849393,-460.0,0.00019618,2]
[378695440,1754959849403,-507.42,0.00019618,2]
[378695441,1754959849413,-489.94,0.00019618,2]
[378695442,1754959849423,-460.0,0.00019618,2]
[378695443,1754959849432,-1216.19,0.00019618,2]
[378695444,1754959849445,-326.64130059,0.00019618,2]
[378695445,1754959849454,-1003.25,0.00019618,2]
[378695446,1754959849464,-813.88,0.00019618,2]
[378695447,1754959849474,-701.73,0.00019618,2]
[378695448,1754959849483,-518.43,0.00019618,2]
[378695449,1754959849493,-460.0,0.00019618,2]
[378695450,1754959849503,-460.0,0.00019618,2]
[378695451,1754959849512,-638.23,0.00019618,2]
[378695452,1754959849522,-1053.34,0.00019618,2]
[378695453,1754959849531,-460.0,0.00019618,2]
[378695454,1754959849541,-473.00086552,0.00019618,2]
[378695455,1754959849550,-460.0,0.00019618,2]
[378695456,1754959849561,-460.0,0.00019618,2]
[378695457,1754959849571,-460.0,0.00019618,2]
[378695458,1754959849580,-966.74,0.00019618,2]
[378695459,1754959849589,-460.0,0.00019618,2]
[378695460,1754959849599,-460.0,0.00019618,2]
[378695461,1754959849608,-460.0,0.00019618,2]
[378695462,1754959849618,-460.0,0.00019618,2]
[378695463,1754959849627,-486.72,0.00019618,2]
[378695464,1754959849637,-460.0,0.00019618,2]
[378695465,1754959849647,-1072.79,0.00019618,2]
[378695466,1754959849656,-483.96,0.00019618,2]
[378695467,1754959849665,-568.71,0.00019618,2]
[378695468,1754959849675,-311.83,0.00019618,2]
[378695469,1754959849684,-460.0,0.00019618,2]
[378695470,1754959849694,-460.0,0.00019618,2]
[378695471,1754959849704,-1750.38,0.00019618,2]
[378695472,1754959849722,-696.39,0.00019618,2]
[378695473,1754959849731,-575.06,0.00019618,2]
[378695474,1754959849740,-460.0,0.00019618,2]
[378695475,1754959849750,-962.94,0.00019618,2]
[378695476,1754959849759,-559.49,0.00019618,2]
[378695477,1754959849768,-460.0,0.00019618,2]
[378695478,1754959849778,-728.67,0.00019618,2]
[378695479,1754959849787,-1251.27,0.00019618,2]
[378695480,1754959849796,-460.0,0.00019618,2]
[378695481,1754959849806,-929.97,0.00019618,2]
[378695482,1754959849815,-954.4,0.00019618,2]
[378695483,1754959849825,-460.0,0.00019618,2]
[378695484,1754959849834,-460.0,0.00019618,2]
[378695485,1754959849843,-151.0,0.00019618,2]
[378695486,1754959849852,-151.0,0.00019618,2]
[378695487,1754959849862,-460.0,0.00019618,2]
[378695488,1754959849871,-2140.46,0.00019618,2]
[378695489,1754959849880,-942.88,0.00019618,2]
[378695490,1754959849889,-460.0,0.00019618,2]
[378695491,1754959849899,-1193.89,0.00019618,2]
[378695492,1754959849909,-151.0,0.00019618,2]
[378695493,1754959849918,-151.0,0.00019618,2]
[378695494,1754959849928,-151.0,0.00019618,2]
[378695495,1754959849937,-2518.51,0.00019618,2]
[378695496,1754959849946,-460.0,0.00019618,2]
[378695497,1754959849955,-2976.54,0.00019618,2]
[378695498,1754959849964,-555.47,0.00019618,2]
[378695499,1754959849973,-151.0,0.00019618,2]
[378695500,1754959849983,-467.06872094,0.00019618,2]
[378695501,1754959849993,-3649.34,0.00019618,2]
[378695502,1754959850003,-460.0,0.00019618,2]
[378695503,1754959850012,-565.04,0.00019618,2]
[378695504,1754959850022,-460.0,0.00019618,2]
[378695505,1754959850031,-151.0,0.00019618,2]
[378695506,1754959850041,-460.0,0.00019618,2]
[378695507,1754959850051,-460.0,0.00019618,2]
[378695508,1754959850060,-725.85,0.00019618,2]
[378695509,1754959850070,-250.123541,0.00019618,2]
[378695510,1754959850079,-460.0,0.00019618,2]
[378695511,1754959850088,-250.123541,0.00019618,2]
[378695512,1754959850097,-975.14,0.00019618,2]
[378695513,1754959850107,-1560.15,0.00019618,2]
[378695514,1754959850116,-1159.85,0.00019618,2]
[378695515,1754959850125,-3296.48,0.00019618,2]
[378695516,1754959850135,-460.0,0.00019618,2]
[378695517,1754959850145,-151.0,0.00019618,2]
[378695518,1754959850154,-744.37,0.00019618,2]
[378695519,1754959850163,-151.0,0.00019618,2]
[378695520,1754959850173,-460.0,0.00019618,2]
[378695521,1754959850182,-460.0,0.00019618,2]
[378695522,1754959850192,-266.301776,0.00019618,2]
[378695523,1754959850202,-460.0,0.00019618,2]
[378695524,1754959850212,-151.0,0.00019618,2]
[378695525,1754959850220,-460.0,0.00019618,2]
[378695526,1754959850229,-1460.16,0.00019618,2]
[378695527,1754959850239,-594.824233,0.00019618,2]
[378695528,1754959850252,-460.0,0.00019618,2]
[378695529,1754959850262,-594.824233,0.00019618,2]
[378695530,1754959850271,-832.37,0.00019618,2]
[378695531,1754959850281,-558.26,0.00019618,2]
[378695532,1754959850290,-1640.47,0.00019618,2]
[378695533,1754959850299,-1267.95,0.00019618,2]
[378695534,1754959850310,-460.0,0.00019618,2]
[378695535,1754959850320,-1701.99,0.00019618,2]
[378695536,1754959850330,-897.18,0.00019618,2]
[378695537,1754959850340,-151.0,0.00019619,2]
[378695538,1754959850350,-500.0,0.00019619,2]
[378695539,1754959850363,-500.0,0.00019619,2]
[378695540,1754959850377,-359.60233968,0.00019619,2]
[378695541,1754959850396,-151.0,0.00019619,2]
[378695542,1754959850409,-151.0,0.00019619,2]
[378695543,1754959850422,-203.47137086,0.00019619,2]
[378695544,1754959850432,-151.0,0.00019619,2]
[378695545,1754959850445,-151.0,0.00019619,2]
[378695546,1754959850458,-151.0,0.0001962,2]
[378695547,1754959850470,-151.0,0.0001962,2]
[378695548,1754959850484,-500.0,0.0001962,2]
[378695549,1754959850497,-460.0,0.0001962,2]
[378695550,1754959850510,-1107.73,0.0001962,2]
[378695551,1754959850522,-460.0,0.0001962,2]
[378695552,1754959850534,-603.27,0.0001962,2]
[378695553,1754959850549,-597.94,0.0001962,2]
[378695554,1754959850561,-336.6929454,0.0001962,2]
[378695555,1754959850573,-460.0,0.0001962,2]
[378695556,1754959850585,-758.15,0.0001962,2]
[378695557,1754959850598,-460.0,0.0001962,2]
[378695558,1754959850611,-592.25,0.0001962,2]
[378695559,1754959850624,-507.19,0.0001962,2]
[378695560,1754959850638,-460.0,0.0001962,2]
[378695561,1754959850651,-151.0,0.0001962,2]
[378695562,1754959850664,-151.0,0.0001962,2]
[378695563,1754959850675,-460.0,0.0001962,2]
[378695564,1754959850685,-460.0,0.0001962,2]
[378695565,1754959850697,-460.0,0.0001962,2]
[378695566,1754959850708,-460.0,0.0001962,2]
[378695567,1754959850720,-3984.186465,0.0001962,2]
[378695568,1754959850732,-460.0,0.0001962,2]
[378695569,1754959850745,-3984.186465,0.0001962,2]
[378695570,1754959850757,-151.0,0.0001962,2]
[378695571,1754959850769,-432.23355846,0.0001962,2]
[378695572,1754959850782,-460.0,0.0001962,2]
[378695573,1754959850795,-151.0,0.0001962,2]
[378695574,1754959850808,-460.0,0.0001962,2]
[378695575,1754959850821,-151.0,0.0001962,2]
[378695576,1754959850831,-151.0,0.0001962,2]
[378695577,1754959850841,-260.221094,0.0001962,2]
[378695578,1754959850851,-151.0,0.0001962,2]
[378695579,1754959850862,-518.83,0.0001962,2]
[378695580,1754959850874,-339.392345,0.0001962,2]
[378695581,1754959850887,-460.0,0.0001962,2]
[378695582,1754959850899,-151.0,0.0001962,2]
[378695583,1754959850911,-460.0,0.0001962,2]
[378695584,1754959850920,-460.0,0.0001962,2]
[378695585,1754959850931,-151.0,0.0001962,2]
[378695586,1754959850942,-460.0,0.0001962,2]
[378695587,1754959850956,-460.0,0.0001962,2]
[378695588,1754959850968,-460.0,0.0001962,2]
[378695589,1754959850978,-507.27184694,0.0001962,2]
[378695590,1754959850989,-460.0,0.0001962,2]
[378695591,1754959850999,-460.0,0.0001962,2]
[378695592,1754959851010,-460.0,0.0001962,2]
[378695593,1754959851022,-631.1,0.0001962,2]
[378695594,1754959851032,-460.0,0.0001962,2]
[378695595,1754959851043,-151.0,0.0001962,2]
[378695596,1754959851054,-217.955518,0.0001962,2]
[378695597,1754959851065,-460.0,0.0001962,2]
[378695598,1754959851076,-527.42,0.0001962,2]
[378695599,1754959851088,-460.0,0.0001962,2]
[378695600,1754959851099,-460.0,0.0001962,2]
[378695601,1754959851110,-485.0,0.0001962,2]
[378695602,1754959851121,-460.0,0.0001962,2]
[378695603,1754959851131,-935.87,0.0001962,2]
[378695604,1754959851143,-460.0,0.0001962,2]
[378695605,1754959851154,-460.0,0.0001962,2]
[378695606,1754959851164,-460.0,0.0001962,2]
[378695607,1754959851176,-460.0,0.0001962,2]
[378695608,1754959851187,-460.0,0.0001962,2]
[378695609,1754959851199,-460.0,0.0001962,2]
[378695610,1754959851210,-151.0,0.0001962,2]
[378695611,1754959851221,-460.0,0.0001962,2]
[378695612,1754959851232,-650.85,0.0001962,2]
[378695613,1754959851246,-460.0,0.0001962,2]
[378695614,1754959851257,-315.72091378,0.0001962,2]
[378695615,1754959851268,-460.0,0.0001962,2]
[378695616,1754959851279,-1063.4,0.0001962,2]
[378695617,1754959851290,-661.87,0.0001962,2]
[378695618,1754959851301,-460.0,0.0001962,2]
[378695619,1754959851313,-460.0,0.0001962,2]
[378695620,1754959851325,-151.0,0.0001962,2]
[378695621,1754959851336,-160.805127,0.0001962,2]
[378695622,1754959851347,-774.72,0.0001962,2]
[378695623,1754959851360,-462.2,0.0001962,2]
[378695624,1754959851371,-151.427587,0.0001962,2]
[378695625,1754959851382,-460.0,0.0001962,2]
[378695626,1754959851392,-151.0,0.0001962,2]
[378695627,1754959851403,-460.0,0.0001962,2]
[378695628,1754959851415,-460.0,0.0001962,2]
[378695629,1754959851425,-460.0,0.0001962,2]
[378695630,1754959851436,-1830.6,0.0001962,2]
[378695631,1754959851448,-460.0,0.0001962,2]
[378695632,1754959851458,-460.0,0.0001962,2]
[378695633,1754959851469,-460.0,0.0001962,2]
[378695634,1754959851481,-473.2,0.0001962,2]
[378695635,1754959851492,-460.0,0.0001962,2]
[378695636,1754959851502,-286.062269,0.0001962,2]
[378695637,1754959851513,-460.0,0.0001962,2]
[378695638,1754959851524,-286.062269,0.0001962,2]
[378695639,1754959851534,-269.659471,0.0001962,2]
[378695640,1754959851545,-151.0,0.0001962,2]
[378695641,1754959851556,-269.659471,0.0001962,2]
[378695642,1754959851567,-158.323129,0.0001962,2]
[378695643,1754959851578,-573.1955,0.0001962,2]
[378695644,1754959851589,-151.0,0.0001962,2]
[378695645,1754959851599,-573.1955,0.0001962,2]
[378695646,1754959851609,-497.213042,0.0001962,2]
[378695647,1754959851620,-497.213042,0.0001962,2]
[378695648,1754959851631,-460.0,0.0001962,2]
[378695649,1754959851642,-1375.69732,0.0001962,2]
[378695650,1754959851653,-1375.69732,0.0001962,2]
[378695651,1754959851664,-626.37,0.0001962,2]
[378695652,1754959851674,-312.15287484,0.0001962,2]
[378695653,1754959851686,-555.8,0.0001962,2]
[378695654,1754959851697,-3083.72,0.0001962,2]
[378695655,1754959851707,-12797.6,0.0001962,2]
[378695656,1754959851719,-1000.0,0.00019621,2]
[378695657,1754959851731,-460.0,0.00019621,2]
[378695658,1754959851741,-460.0,0.00019621,2]
[378695659,1754959851752,-712.88,0.00019621,2]
[378695660,1754959851764,-460.0,0.00019621,2]
[378695661,1754959851775,-460.0,0.00019621,2]
[378695662,1754959851786,-502.11640325,0.00019621,2]
[378695663,1754959851797,-460.0,0.00019621,2]
[378695664,1754959851808,-460.0,0.00019621,2]
[378695665,1754959851819,-485.01,0.00019621,2]
[378695666,1754959851830,-460.0,0.00019621,2]
[378695667,1754959851841,-151.0,0.00019621,2]
[378695668,1754959851851,-151.0,0.00019621,2]
[378695669,1754959851862,-460.0,0.00019621,2]
[378695670,1754959851873,-460.0,0.00019621,2]
[378695671,1754959851884,-521.49,0.00019621,2]
[378695672,1754959851895,-460.0,0.00019621,2]
[378695673,1754959851906,-460.0,0.00019621,2]
[378695674,1754959851917,-460.0,0.00019621,2]
[378695675,1754959851928,-460.0,0.00019621,2]
[378695676,1754959851939,-460.0,0.00019621,2]
[378695677,1754959851951,-460.0,0.00019621,2]
[378695678,1754959851962,-460.0,0.00019621,2]
[378695679,1754959851972,-460.0,0.00019621,2]
[378695680,1754959851983,-462.45779141,0.00019621,2]
[378695681,1754959851993,-460.0,0.00019621,2]
[378695682,1754959852004,-460.0,0.00019621,2]
[378695683,1754959852016,-151.0,0.00019621,2]
[378695684,1754959852027,-594.824233,0.00019621,2]
[378695685,1754959852038,-594.824233,0.00019621,2]
[378695686,1754959852051,-151.0,0.00019622,2]
[378695687,1754959852064,-286.062269,0.00019622,2]
[378695688,1754959852076,-286.062269,0.00019622,2]
[378695689,1754959852087,-269.659471,0.00019622,2]
[378695690,1754959852099,-269.659471,0.00019622,2]
[378695691,1754959852112,-460.0,0.00019622,2]
[378695692,1754959852123,-151.0,0.00019622,2]
[378695693,1754959852135,-546.46,0.00019622,2]
[378695694,1754959852145,-2526.4,0.00019622,2]
[378695695,1754959852156,-151.0,0.00019622,2]
[378695696,1754959852167,-1956.06,0.00019622,2]
[378695697,1754959852178,-151.0,0.00019622,2]
[378695698,1754959852189,-1398.74,0.00019622,2]
[378695699,1754959852200,-151.0,0.00019622,2]
[378695700,1754959852211,-151.0,0.00019622,2]
[378695701,1754959852223,-1375.69732,0.00019622,2]
[378695702,1754959852234,-1375.69732,0.00019622,2]
[378695703,1754959852249,-151.0,0.00019622,2]
[378695704,1754959852260,-156.202268,0.00019622,2]
[378695705,1754959852273,-151.0,0.00019622,2]
[378695706,1754959852283,-151.0,0.00019622,2]
[378695707,1754959852295,-539.81,0.00019622,2]
[378695708,1754959852308,-460.0,0.00019622,2]
[378695709,1754959852320,-151.0,0.00019622,2]
[378695710,1754959852331,-460.0,0.00019622,2]
[378695711,1754959852341,-250.123541,0.00019622,2]
[378695712,1754959852353,-3598.78,0.00019622,2]
[378695713,1754959852364,-250.123541,0.00019622,2]
[378695714,1754959852375,-151.0,0.00019622,2]
[378695715,1754959852385,-151.0,0.00019622,2]
[378695716,1754959852395,-460.0,0.00019622,2]
[378695717,1754959852406,-3359.99,0.00019622,2]